[Event "EYTCC U12 Girls 2019"]
[Site "Pardubice"]
[Date "2019.07.15"]
[Round "5.23"]
[White "Havelkova, Beata"]
[Black "Veverkova, Dorota"]
[Result "1-0"]
[ECO "B13"]
[WhiteElo "1316"]
[BlackElo "1348"]
[Annotator "NA"]
[PlyCount "67"]
[EventDate "2019.07.11"]
[EventType "swiss"]
[EventCountry "CZE"]
[SourceTitle "playchess.com"]
[Source "ChessBase"]
[SourceQuality "1"]
[WhiteTeam "Czech Republic"]
[BlackTeam "Czech Republic"]
[WhiteTeamCountry "CZE"]
[BlackTeamCountry "CZE"]
[TimeControl "40/5400+30:1800+30"]

1. e4 {[%emt 0:00:00]} c6 {[%emt 0:00:00]} 2. d4 {[%emt 0:00:00]} d5 {[%emt 0:00:00]} 3. exd5 {[%emt 0:00:00]} cxd5 {[%emt 0:00:00]} 4. Bd3 {[%emt 0:01:29]} Nc6 {[%emt 0:00:40]} 5. c3 {[%emt 0:00:33]} Nf6 {[%emt 0:00:40]} 6. Bf4 {[%emt 0:02:14]} g6 {[%emt 0:00:51]} 7. h3 {[%emt 0:02:54]} Bg7 {[%emt 0:01:04]} 8. Nf3 {[%emt 0:00:24]} O-O {[%emt 0:02:19]} 9. O-O {[%emt 0:00:17]} Bf5 {[%emt 0:00:41]} 10. Bxf5 {[%emt 0:03:14]} gxf5 {[%emt 0:00:12]} 11. Nbd2 {[%emt 0:04:01]} e6 {[%emt 0:02:21]} 12. Re1 {[%emt 0:06:05]} Kh8 {[%emt 0:01:51]} 13. Kh1 {[%emt 0:04:05]} Rg8 {[%emt 0:02:20]} 14. Ne5 {[%emt 0:05:41]} Nxe5 {[%emt 0:01:08]} 15. Bxe5 {[%emt 0:01:12]} Qe7 {[%emt 0:02:14]} 16. Nf3 {[%emt 0:03:36]} Bh6 {[%emt 0:01:23]} 17. Rg1 {[%emt 0:04:27]} Bg7 {[%emt 0:03:50]} 18. Qe2 {[%emt 0:07:13]} Rac8 {[%emt 0:03:38]} 19. Qe3 {[%emt 0:04:16]} Nh5 {[%emt 0:09:56]} 20. Rae1 {[%emt 0:07:57]} f6 {[%emt 0:02:12]} 21. Bh2 {[%emt 0:00:57]} Rc6 {[%emt 0:00:40]} 22. g4 {[%emt 0:02:27]} fxg4 {[%emt 0:02:53]} 23. hxg4 {[%emt 0:00:23]} Qf7 {[%emt 0:02:37]} 24. gxh5 {[%emt 0:04:21]} Qxh5 {[%emt 0:01:28]} 25. Qf4 {[%emt 0:04:54]} Bh6 {[%emt 0:03:32]} 26. Rxg8+ {[%emt 0:03:28]} Kxg8 {[%emt 0:00:11]} 27. Qxf6 {[%emt 0:05:08]} Bg7 {[%emt 0:05:01]} 28. Rg1 {[%emt 0:02:09]} Rc7 {[%emt 0:01:25]} 29. Qd8+ {[%emt 0:01:32]} Kf7 {[%emt 0:00:26]} 30. Qxc7+ {[%emt 0:00:06]} Ke8 {[%emt 0:00:53]} 31. Qc8+ {[%emt 0:05:39]} Ke7 {[%emt 0:00:11]} 32. Rxg7+ {[%emt 0:00:30]} Kf6 {[%emt 0:00:18]} 33. Qf8+ {[%emt 0:00:21]} Qf7 {[%emt 0:00:17]} 34. Qxf7# {[%emt 0:00:06]} 1-0

[Event "EYTCC U12 Girls 2019"]
[Site "Pardubice"]
[Date "2019.07.15"]
[Round "5.24"]
[White "Zadrapova, Amalie"]
[Black "Janouskova, Adela"]
[Result "1/2-1/2"]
[ECO "B76"]
[WhiteElo "1248"]
[BlackElo "1200"]
[Annotator "NA"]
[PlyCount "80"]
[EventDate "2019.07.11"]
[EventType "swiss"]
[EventCountry "CZE"]
[SourceTitle "playchess.com"]
[Source "ChessBase"]
[SourceQuality "1"]
[WhiteTeam "Czech Republic"]
[BlackTeam "Czech Republic"]
[WhiteTeamCountry "CZE"]
[BlackTeamCountry "CZE"]
[TimeControl "40/5400+30:1800+30"]

1. e4 {[%emt 0:00:00]} c5 {[%emt 0:00:00]} 2. Nf3 {[%emt 0:00:00]} d6 {[%emt 0:00:04]} 3. d4 {[%emt 0:00:00]} cxd4 {[%emt 0:00:06]} 4. Nxd4 {[%emt 0:00:05]} Nf6 {[%emt 0:00:04]} 5. Nc3 {[%emt 0:00:22]} g6 {[%emt 0:00:36]} 6. Be3 {[%emt 0:00:28]} Bg7 {[%emt 0:00:16]} 7. f3 {[%emt 0:00:18]} O-O {[%emt 0:00:17]} 8. Qd2 {[%emt 0:00:30]} Nc6 {[%emt 0:00:11]} 9. O-O-O {[%emt 0:00:36]} Nxd4 {[%emt 0:01:10]} 10. Bxd4 {[%emt 0:00:24]} Be6 {[%emt 0:00:34]} 11. g4 {[%emt 0:01:48]} Qa5 {[%emt 0:03:41]} 12. Kb1 {[%emt 0:02:19]} Rfc8 {[%emt 0:11:40]} 13. h4 {[%emt 0:05:09]} h5 {[%emt 0:12:55]} 14. gxh5 {[%emt 0:02:34]} Nxh5 {[%emt 0:00:41]} 15. Bxg7 {[%emt 0:01:09]} Nxg7 {[%emt 0:00:38]} 16. Bh3 {[%emt 0:04:38]} Bxh3 {[%emt 0:00:57]} 17. Rxh3 {[%emt 0:00:07]} Rc6 {[%emt 0:06:59]} 18. f4 {[%emt 0:03:54]} e6 {[%emt 0:12:12]} 19. Rg1 {[%emt 0:06:54]} Rac8 {[%emt 0:03:00]} 20. Rg5 {[%emt 0:03:44]} Qa6 {[%emt 0:06:50]} 21. Rf3 {[%emt 0:01:34]} Kf8 {[%emt 0:02:45]} 22. f5 {[%emt 0:03:00]} exf5 {[%emt 0:03:21]} 23. exf5 {[%emt 0:01:21]} gxf5 {[%emt 0:08:46]} 24. h5 {[%emt 0:04:00]} d5 {[%emt 0:03:19]} 25. h6 {[%emt 0:02:59]} Rxh6 {[%emt 0:00:18]} 26. Qg2 {[%emt 0:04:58]} Rg6 {[%emt 0:01:36]} 27. Rfg3 {[%emt 0:04:56]} Qe6 {[%emt 0:04:10]} 28. a3 {[%emt 0:01:35]} Rc6 {[%emt 0:04:07]} 29. Nxd5 {[%emt 0:05:08]} Rd6 {[%emt 0:01:10]} 30. Rd3 {[%emt 0:08:41]} Rxg5 {[%emt 0:02:12]} 31. Qxg5 {[%emt 0:00:46]} Rxd5 {[%emt 0:00:16]} 32. Rxd5 {[%emt 0:00:33]} Qxd5 {[%emt 0:00:05]} 33. Qh6 {[%emt 0:00:46]} Kg8 {[%emt 0:00:39]} 34. Qh2 {[%emt 0:00:45]} Qd8 {[%emt 0:02:38]} 35. Qg1 {[%emt 0:00:58]} Qb6 {[%emt 0:00:38]} 36. Qh2 {[%emt 0:00:22]} Kf8 {[%emt 0:00:48]} 37. Qh8+ {[%emt 0:01:41]} Ke7 {[%emt 0:00:43]} 38. Qxg7 {[%emt 0:00:30]} Qg6 {[%emt 0:00:19]} 39. Qe5+ {[%emt 0:00:31]} Qe6 {[%emt 0:00:19]} 40. Qc7+ {[%emt 0:00:15]} Qd7 {[%emt 0:01:01]} 1/2-1/2

[Event "EYTCC U12 Girls 2019"]
[Site "Pardubice"]
[Date "2019.07.16"]
[Round "6.17"]
[White "Mellor, Jessica"]
[Black "Veverkova, Dorota"]
[Result "1-0"]
[ECO "B18"]
[WhiteElo "1663"]
[BlackElo "1348"]
[Annotator "NA"]
[PlyCount "69"]
[EventDate "2019.07.11"]
[EventType "swiss"]
[EventCountry "CZE"]
[SourceTitle "playchess.com"]
[Source "ChessBase"]
[SourceQuality "1"]
[WhiteTeam "England"]
[BlackTeam "Czech Republic"]
[WhiteTeamCountry "ENG"]
[BlackTeamCountry "CZE"]
[TimeControl "40/5400+30:1800+30"]

1. e4 {[%emt 0:00:00]} c6 {[%emt 0:00:00]} 2. d4 {[%emt 0:00:00]} d5 {[%emt 0:00:00]} 3. Nc3 {[%emt 0:00:00]} dxe4 {[%emt 0:00:00]} 4. Nxe4 {[%emt 0:00:25]} Bf5 {[%emt 0:00:20]} 5. Ng3 {[%emt 0:00:11]} Bg6 {[%emt 0:00:17]} 6. h4 {[%emt 0:00:15]} h6 {[%emt 0:00:08]} 7. Nf3 {[%emt 0:00:17]} Nf6 {[%emt 0:00:26]} 8. h5 {[%emt 0:00:14]} Bh7 {[%emt 0:00:08]} 9. Bd3 {[%emt 0:00:38]} Bxd3 {[%emt 0:00:13]} 10. Qxd3 {[%emt 0:00:30]} Nbd7 {[%emt 0:00:32]} 11. Bf4 {[%emt 0:00:53]} e6 {[%emt 0:01:37]} 12. O-O-O {[%emt 0:02:24]} Qb6 {[%emt 0:01:51]} 13. Ne5 {[%emt 0:03:14]} Bd6 {[%emt 0:04:36]} 14. Kb1 {[%emt 0:06:43]} Bxe5 {[%emt 0:02:07]} 15. dxe5 {[%emt 0:00:15]} Nd5 {[%emt 0:01:24]} 16. Ne4 {[%emt 0:17:06]} O-O-O {[%emt 0:01:41]} 17. Nd6+ {[%emt 0:00:27]} Kb8 {[%emt 0:03:44]} 18. Nxf7 {[%emt 0:03:08]} Nxf4 {[%emt 0:04:34]} 19. Qd6+ {[%emt 0:01:20]} Kc8 {[%emt 0:01:08]} 20. Nxh8 {[%emt 0:00:31]} Nc5 {[%emt 0:00:56]} 21. Qxd8+ {[%emt 0:00:39]} Qxd8 {[%emt 0:00:32]} 22. Rxd8+ {[%emt 0:00:05]} Kxd8 {[%emt 0:00:06]} 23. g3 {[%emt 0:02:22]} Nd5 {[%emt 0:00:35]} 24. Rd1 {[%emt 0:01:33]} Ke7 {[%emt 0:00:35]} 25. Ng6+ {[%emt 0:01:02]} Kf7 {[%emt 0:02:41]} 26. Nf4 {[%emt 0:02:22]} a6 {[%emt 0:01:31]} 27. Nxd5 {[%emt 0:01:02]} exd5 {[%emt 0:00:11]} 28. f3 {[%emt 0:07:24]} g6 {[%emt 0:01:42]} 29. hxg6+ {[%emt 0:00:27]} Kxg6 {[%emt 0:00:09]} 30. Kc1 {[%emt 0:04:27]} Kf5 {[%emt 0:00:57]} 31. Re1 {[%emt 0:00:34]} h5 {[%emt 0:01:41]} 32. g4+ {[%emt 0:02:03]} hxg4 {[%emt 0:00:28]} 33. fxg4+ {[%emt 0:00:06]} Kxg4 {[%emt 0:00:36]} 34. e6 {[%emt 0:00:11]} Nxe6 {[%emt 0:01:29]} 35. Rxe6 1-0

[Event "EYTCC U12 Girls 2019"]
[Site "Pardubice"]
[Date "2019.07.16"]
[Round "6.18"]
[White "Zadrapova, Amalie"]
[Black "Solovieva, Kristina"]
[Result "1/2-1/2"]
[ECO "B41"]
[WhiteElo "1248"]
[BlackElo "1469"]
[Annotator "NA"]
[PlyCount "74"]
[EventDate "2019.07.11"]
[EventType "swiss"]
[EventCountry "CZE"]
[SourceTitle "playchess.com"]
[Source "ChessBase"]
[SourceQuality "1"]
[WhiteTeam "Czech Republic"]
[BlackTeam "England"]
[WhiteTeamCountry "CZE"]
[BlackTeamCountry "ENG"]
[TimeControl "40/5400+30:1800+30"]

1. e4 {[%emt 0:00:00]} c5 {[%emt 0:00:00]} 2. Nf3 {[%emt 0:00:00]} e6 {[%emt 0:00:00]} 3. d4 {[%emt 0:00:08]} cxd4 {[%emt 0:00:00]} 4. Nxd4 {[%emt 0:00:10]} a6 {[%emt 0:00:00]} 5. c4 {[%emt 0:02:09]} Nf6 {[%emt 0:00:12]} 6. Nc3 {[%emt 0:00:34]} Qc7 {[%emt 0:00:11]} 7. Be3 {[%emt 0:01:57]} Nc6 {[%emt 0:00:16]} 8. Be2 {[%emt 0:01:52]} Be7 {[%emt 0:00:16]} 9. O-O {[%emt 0:00:45]} O-O {[%emt 0:00:11]} 10. Qd2 {[%emt 0:01:15]} Bb4 {[%emt 0:07:02]} 11. f3 {[%emt 0:02:05]} Be7 {[%emt 0:17:18]} 12. Rfd1 {[%emt 0:07:08]} d6 {[%emt 0:07:36]} 13. a3 {[%emt 0:04:47]} Nd7 {[%emt 0:03:56]} 14. Rab1 {[%emt 0:11:08]} Nde5 {[%emt 0:12:38]} 15. f4 {[%emt 0:10:27]} Nxd4 {[%emt 0:18:19]} 16. Bxd4 {[%emt 0:05:22]} Nc6 {[%emt 0:13:31]} 17. Be3 {[%emt 0:03:31]} Rb8 {[%emt 0:02:25]} 18. b4 {[%emt 0:01:41]} Bf6 {[%emt 0:05:18]} 19. b5 {[%emt 0:05:31]} Bxc3 {[%emt 0:01:46]} 20. Qxc3 {[%emt 0:00:37]} Ne7 {[%emt 0:01:32]} 21. Qd2 {[%emt 0:03:40]} axb5 {[%emt 0:01:42]} 22. cxb5 {[%emt 0:03:28]} d5 {[%emt 0:01:25]} 23. Rbc1 {[%emt 0:05:01]} Qd7 {[%emt 0:00:39]} 24. Bc5 {[%emt 0:03:54]} Rd8 {[%emt 0:01:10]} 25. Bxe7 {[%emt 0:01:52]} Qxe7 {[%emt 0:00:17]} 26. Rc3 {[%emt 0:03:59]} h6 {[%emt 0:01:24]} 27. exd5 {[%emt 0:00:54]} Rxd5 {[%emt 0:00:33]} 28. Qc2 {[%emt 0:00:58]} Rxd1+ {[%emt 0:00:28]} 29. Qxd1 Qf6 {[%emt 0:01:39]} 30. Rc4 {[%emt 0:02:10]} b6 {[%emt 0:00:49]} 31. Qd6 {[%emt 0:01:44]} Ra8 {[%emt 0:00:32]} 32. Qxb6 {[%emt 0:00:42]} Qa1+ {[%emt 0:00:35]} 33. Kf2 {[%emt 0:00:43]} Qxa3 {[%emt 0:00:16]} 34. Qd8+ {[%emt 0:00:55]} Qf8 {[%emt 0:00:19]} 35. Qxf8+ {[%emt 0:00:03]} Kxf8 {[%emt 0:00:14]} 36. Rb4 {[%emt 0:00:18]} Rb8 {[%emt 0:00:23]} 37. Ke3 {[%emt 0:00:25]} Bb7 {[%emt 0:00:48] Ke4} 1/2-1/2

[Event "EYTCC U12 Girls 2019"]
[Site "Pardubice"]
[Date "2019.07.16"]
[Round "6.19"]
[White "Pohle, Saskia"]
[Black "Havelkova, Beata"]
[Result "1-0"]
[ECO "B78"]
[WhiteElo "1719"]
[BlackElo "1316"]
[Annotator "NA"]
[PlyCount "77"]
[EventDate "2019.07.11"]
[EventType "swiss"]
[EventCountry "CZE"]
[SourceTitle "playchess.com"]
[Source "ChessBase"]
[SourceQuality "1"]
[WhiteTeam "Germany"]
[BlackTeam "Czech Republic"]
[WhiteTeamCountry "GER"]
[BlackTeamCountry "CZE"]
[TimeControl "40/5400+30:1800+30"]

1. e4 {[%emt 0:00:00]} c5 {[%emt 0:00:00]} 2. Nf3 {[%emt 0:00:00]} d6 {[%emt 0:00:00]} 3. d4 {[%emt 0:00:00]} cxd4 {[%emt 0:00:00]} 4. Nxd4 {[%emt 0:00:00]} Nf6 {[%emt 0:00:00]} 5. Nc3 {[%emt 0:00:01]} g6 {[%emt 0:00:11]} 6. Be3 {[%emt 0:00:16]} Bg7 {[%emt 0:00:25]} 7. f3 {[%emt 0:00:08]} Nc6 {[%emt 0:00:33]} 8. Qd2 {[%emt 0:00:16]} O-O {[%emt 0:00:36]} 9. Bc4 {[%emt 0:00:16]} Bd7 {[%emt 0:00:43]} 10. O-O-O {[%emt 0:00:16]} Rc8 {[%emt 0:00:43]} 11. Bb3 {[%emt 0:00:25]} Qa5 {[%emt 0:03:19]} 12. Kb1 {[%emt 0:03:03]} Rfe8 {[%emt 0:02:55]} 13. g4 {[%emt 0:02:13]} Ne5 {[%emt 0:01:27]} 14. h4 {[%emt 0:02:03]} h5 {[%emt 0:02:42]} 15. gxh5 {[%emt 0:01:21]} Nxh5 {[%emt 0:00:20]} 16. Rdg1 {[%emt 0:04:10]} Nc4 {[%emt 0:02:52]} 17. Bxc4 {[%emt 0:00:17]} Rxc4 {[%emt 0:00:57]} 18. Nb3 {[%emt 0:06:54]} Qa6 {[%emt 0:12:19]} 19. Nd5 {[%emt 0:06:19]} Be6 {[%emt 0:14:11]} 20. Nf4 {[%emt 0:04:29]} Nxf4 {[%emt 0:07:35]} 21. Bxf4 {[%emt 0:00:09]} Rc5 {[%emt 0:11:47]} 22. h5 {[%emt 0:05:49]} Bxb3 {[%emt 0:04:25]} 23. cxb3 {[%emt 0:00:11]} d5 {[%emt 0:07:40]} 24. hxg6 {[%emt 0:05:30]} fxg6 {[%emt 0:01:25]} 25. Bh6 {[%emt 0:06:35]} Qf6 {[%emt 0:01:07]} 26. Bxg7 {[%emt 0:04:07]} Qxg7 {[%emt 0:00:59]} 27. Rh6 {[%emt 0:01:55]} Rc6 {[%emt 0:01:59]} 28. Qxd5+ {[%emt 0:00:34]} e6 {[%emt 0:00:53]} 29. Qg5 {[%emt 0:05:07]} e5 {[%emt 0:00:35]} 30. Rxg6 {[%emt 0:03:09]} Rxg6 {[%emt 0:00:09]} 31. Qxg6 {[%emt 0:00:07]} Qxg6 {[%emt 0:00:06]} 32. Rxg6+ {[%emt 0:00:05]} Kf7 {[%emt 0:00:30]} 33. Rh6 {[%emt 0:02:35]} Kg7 {[%emt 0:00:33]} 34. Rd6 {[%emt 0:00:08]} Re7 {[%emt 0:00:56]} 35. Kc2 {[%emt 0:00:35]} Rf7 {[%emt 0:00:18]} 36. Re6 {[%emt 0:01:37]} Rxf3 {[%emt 0:00:17]} 37. Rxe5 {[%emt 0:00:09]} Kf6 {[%emt 0:00:28]} 38. Re8 {[%emt 0:00:32]} Kf7 {[%emt 0:00:43]} 39. Rb8 1-0

[Event "EYTCC U12 Girls 2019"]
[Site "Pardubice"]
[Date "2019.07.16"]
[Round "6.20"]
[White "Janouskova, Adela"]
[Black "Braeutigam, Katerina"]
[Result "0-1"]
[ECO "B18"]
[WhiteElo "1200"]
[BlackElo "1837"]
[Annotator "NA"]
[PlyCount "82"]
[EventDate "2019.07.11"]
[EventType "swiss"]
[EventCountry "CZE"]
[SourceTitle "playchess.com"]
[Source "ChessBase"]
[SourceQuality "1"]
[WhiteTeam "Czech Republic"]
[BlackTeam "Germany"]
[WhiteTeamCountry "CZE"]
[BlackTeamCountry "GER"]
[TimeControl "40/5400+30:1800+30"]

1. e4 {[%emt 0:00:00]} c6 {[%emt 0:00:00]} 2. d4 {[%emt 0:00:00]} d5 {[%emt 0:00:00]} 3. Nc3 {[%emt 0:02:24]} dxe4 {[%emt 0:00:00]} 4. Nxe4 {[%emt 0:00:09]} Bf5 {[%emt 0:00:06]} 5. Ng3 {[%emt 0:00:49]} Bg6 {[%emt 0:00:12]} 6. N1e2 {[%emt 0:00:22]} e6 {[%emt 0:00:59]} 7. Nf4 {[%emt 0:00:15]} Bd6 {[%emt 0:00:33]} 8. Bc4 {[%emt 0:01:00]} Qc7 {[%emt 0:03:21]} 9. Nxg6 {[%emt 0:01:01]} hxg6 {[%emt 0:00:11]} 10. Qd3 {[%emt 0:01:13]} Nd7 {[%emt 0:02:01]} 11. Be3 {[%emt 0:01:15]} Bxg3 {[%emt 0:10:36]} 12. fxg3 {[%emt 0:00:14]} Rxh2 {[%emt 0:00:51]} 13. O-O-O {[%emt 0:03:16]} Rxh1 {[%emt 0:01:37]} 14. Rxh1 {[%emt 0:00:09]} Qxg3 {[%emt 0:02:42]} 15. Qe2 {[%emt 0:01:26]} O-O-O {[%emt 0:01:49]} 16. Rh3 {[%emt 0:00:50]} Qd6 {[%emt 0:00:56]} 17. Rf3 {[%emt 0:02:45]} Ngf6 {[%emt 0:03:38]} 18. Qd3 {[%emt 0:01:58]} Nb6 {[%emt 0:01:08]} 19. Bb3 {[%emt 0:01:11]} Nbd5 {[%emt 0:01:45]} 20. Bg5 {[%emt 0:01:50]} Rd7 {[%emt 0:13:26]} 21. Bxf6 {[%emt 0:02:04]} Nxf6 {[%emt 0:01:18]} 22. c3 {[%emt 0:03:09]} Rd8 {[%emt 0:16:13]} 23. Qe2 {[%emt 0:07:20]} Rh8 {[%emt 0:01:35]} 24. Rh3 {[%emt 0:03:46]} Qf4+ {[%emt 0:01:13]} 25. Kb1 {[%emt 0:01:16]} Rxh3 {[%emt 0:00:46]} 26. gxh3 {[%emt 0:00:12]} Qf5+ {[%emt 0:00:12]} 27. Bc2 {[%emt 0:00:23]} Qxh3 {[%emt 0:00:17]} 28. a3 {[%emt 0:00:38]} g5 {[%emt 0:07:41]} 29. Qd3 {[%emt 0:00:50]} Qxd3 {[%emt 0:01:13]} 30. Bxd3 {[%emt 0:00:01]} g4 {[%emt 0:00:53]} 31. Bf1 {[%emt 0:00:15]} Nd5 {[%emt 0:00:54]} 32. Be2 {[%emt 0:00:45]} g3 {[%emt 0:00:26]} 33. Bf3 {[%emt 0:00:04]} Ne3 {[%emt 0:00:10]} 34. Kc1 {[%emt 0:00:09]} g2 {[%emt 0:00:09]} 35. Bxg2 {[%emt 0:00:03]} Nxg2 {[%emt 0:00:10]} 36. Kd2 {[%emt 0:00:02]} f5 {[%emt 0:00:27]} 37. Ke2 {[%emt 0:00:13]} g5 {[%emt 0:00:08]} 38. Kf2 {[%emt 0:00:05]} Nh4 {[%emt 0:01:01]} 39. Kg3 {[%emt 0:00:10]} f4+ {[%emt 0:00:59]} 40. Kf2 {[%emt 0:00:15]} g4 {[%emt 0:00:16]} 41. Kf1 {[%emt 0:30:11]} g3 {[%emt 0:30:12]} 0-1

[Event "EYTCC U12 Girls 2019"]
[Site "Pardubice"]
[Date "2019.07.16"]
[Round "6.22"]
[White "Alagoz, Zumra Meryem"]
[Black "Karaivanova, Petya"]
[Result "1-0"]
[ECO "C50"]
[WhiteElo "1310"]
[BlackElo "1792"]
[Annotator "NA"]
[PlyCount "201"]
[EventDate "2019.07.11"]
[EventType "swiss"]
[EventCountry "CZE"]
[SourceTitle "playchess.com"]
[Source "ChessBase"]
[SourceQuality "1"]
[WhiteTeam "Turkey"]
[BlackTeam "Bulgaria"]
[WhiteTeamCountry "TUR"]
[BlackTeamCountry "BUL"]
[TimeControl "40/5400+30:1800+30"]

1. e4 {[%emt 0:00:00]} e5 {[%emt 0:00:00]} 2. Nf3 {[%emt 0:00:00]} Nc6 {[%emt 0:00:00]} 3. Bc4 {[%emt 0:00:00]} Nf6 {[%emt 0:00:00]} 4. d3 {[%emt 0:00:00]} Bc5 {[%emt 0:00:00]} 5. O-O {[%emt 0:01:18]} d6 {[%emt 0:00:13]} 6. c3 {[%emt 0:01:39]} O-O {[%emt 0:00:36]} 7. h3 {[%emt 0:02:34]} a6 {[%emt 0:00:32]} 8. Bb3 {[%emt 0:00:44]} Bd7 {[%emt 0:00:24]} 9. Re1 {[%emt 0:03:38]} b5 {[%emt 0:01:06]} 10. Nbd2 {[%emt 0:03:13]} Bb6 {[%emt 0:01:18]} 11. Nf1 {[%emt 0:02:18]} h6 {[%emt 0:00:44]} 12. Be3 {[%emt 0:12:38]} Bxe3 {[%emt 0:04:20]} 13. fxe3 {[%emt 0:01:14]} Na5 {[%emt 0:00:48]} 14. Bc2 {[%emt 0:00:55]} c5 {[%emt 0:04:43]} 15. Ng3 {[%emt 0:11:57]} Re8 {[%emt 0:01:11]} 16. Rf1 {[%emt 0:09:12]} Rc8 {[%emt 0:11:01]} 17. Nd2 {[%emt 0:04:05]} Nh7 {[%emt 0:06:46]} 18. Nf5 {[%emt 0:14:05]} Bxf5 {[%emt 0:02:46]} 19. Rxf5 {[%emt 0:00:49]} Nf8 {[%emt 0:05:01]} 20. Qf3 {[%emt 0:04:24]} Ne6 {[%emt 0:04:24]} 21. Qf2 {[%emt 0:05:56]} Rf8 {[%emt 0:05:59]} 22. Rf1 {[%emt 0:00:27]} Qe7 {[%emt 0:01:00]} 23. Bd1 {[%emt 0:04:56]} Nc6 {[%emt 0:06:30]} 24. Bb3 {[%emt 0:02:08]} a5 {[%emt 0:02:46]} 25. Bd5 {[%emt 0:01:56]} Ncd8 {[%emt 0:04:52]} 26. Qg3 {[%emt 0:03:05]} Nc7 {[%emt 0:02:00]} 27. Bb3 {[%emt 0:00:47]} a4 {[%emt 0:04:53]} 28. Bd1 {[%emt 0:00:14]} Nc6 {[%emt 0:00:06]} 29. Nf3 {[%emt 0:03:07]} Qe6 {[%emt 0:02:22]} 30. a3 {[%emt 0:01:55]} Ne7 {[%emt 0:01:08]} 31. Rh5 {[%emt 0:00:52]} f5 {[%emt 0:05:31]} 32. Nh4 {[%emt 0:02:56]} fxe4 {[%emt 0:02:33]} 33. dxe4 {[%emt 0:00:11]} Rxf1+ {[%emt 0:00:23]} 34. Kxf1 {[%emt 0:00:04]} Qc4+ {[%emt 0:01:58]} 35. Kg1 {[%emt 0:00:21]} Qxe4 {[%emt 0:02:15]} 36. Rxh6 {[%emt 0:00:51]} Qb1 {[%emt 0:01:24]} 37. Rxd6 {[%emt 0:00:41]} Ncd5 {[%emt 0:05:36]} 38. Qg4 {[%emt 0:02:01]} Nxe3 {[%emt 0:04:38]} 39. Qe6+ {[%emt 0:00:52]} Kh7 {[%emt 0:00:10]} 40. Qxe7 {[%emt 0:00:15]} Nxd1 {[%emt 0:03:31]} 41. Kh2 {[%emt 0:30:41]} Ne3 {[%emt 0:05:40]} 42. Qxe5 {[%emt 0:00:00]} Qe1 {[%emt 0:07:48]} 43. Qe4+ {[%emt 0:00:00]} Kg8 {[%emt 0:04:01]} 44. Qe6+ {[%emt 0:00:00]} Kh7 {[%emt 0:00:14]} 45. Qe4+ {[%emt 0:00:00]} Kg8 {[%emt 0:05:09]} 46. Qe6+ {[%emt 0:00:00]} Kh7 {[%emt 0:00:10]} 47. Nf3 {[%emt 0:00:00]} Nf1+ {[%emt 0:03:24]} 48. Kg1 {[%emt 0:00:00]} Qxe6 {[%emt 0:00:34]} 49. Rxe6 {[%emt 0:00:00]} Ng3 {[%emt 0:00:09]} 50. Ng5+ {[%emt 0:00:00]} Kg8 {[%emt 0:01:04]} 51. Rb6 {[%emt 0:00:00]} Ne2+ {[%emt 0:02:24]} 52. Kf2 {[%emt 0:00:00]} Nc1 {[%emt 0:00:11]} 53. Rxb5 {[%emt 0:00:00]} Nb3 {[%emt 0:00:56]} 54. Ne4 {[%emt 0:00:00]} Rf8+ {[%emt 0:00:38]} 55. Ke3 {[%emt 0:00:00]} Re8 {[%emt 0:00:37]} 56. Kf3 {[%emt 0:00:00]} Re5 {[%emt 0:02:35]} 57. Kf4 {[%emt 0:00:37]} Rd5 {[%emt 0:00:54]} 58. Rb8+ {[%emt 0:01:20]} Kf7 {[%emt 0:00:22]} 59. Ra8 {[%emt 0:01:22]} Nc1 {[%emt 0:00:47]} 60. Rxa4 {[%emt 0:02:14]} Nd3+ {[%emt 0:00:10]} 61. Ke3 {[%emt 0:00:31]} Nxb2 {[%emt 0:00:19]} 62. Ra7+ {[%emt 0:00:45]} Kg6 {[%emt 0:01:04]} 63. a4 {[%emt 0:00:30]} Nc4+ {[%emt 0:00:40]} 64. Kf3 {[%emt 0:00:35]} Rd3+ {[%emt 0:01:16]} 65. Kf4 {[%emt 0:00:59]} Rd5 {[%emt 0:00:27]} 66. Ra6+ {[%emt 0:00:27]} Kf7 {[%emt 0:00:48]} 67. Rc6 {[%emt 0:00:25]} Nb2 {[%emt 0:02:42]} 68. a5 Nd3+ {[%emt 0:01:20]} 69. Ke3 {[%emt 0:01:46]} Ne5 {[%emt 0:00:13]} 70. Rc7+ {[%emt 0:01:26]} Kg6 {[%emt 0:00:55]} 71. a6 {[%emt 0:01:18]} Nc4+ {[%emt 0:00:30]} 72. Kf3 {[%emt 0:00:44]} Rf5+ {[%emt 0:01:11]} 73. Kg3 {[%emt 0:00:32]} Ne3 {[%emt 0:00:32]} 74. Kh2 {[%emt 0:00:58]} Nf1+ {[%emt 0:00:30]} 75. Kg1 {[%emt 0:00:26]} Ne3 {[%emt 0:00:36]} 76. a7 {[%emt 0:00:49]} Rf8 {[%emt 0:00:13]} 77. Nxc5 {[%emt 0:00:24]} Nd5 {[%emt 0:00:34]} 78. Rc6+ {[%emt 0:00:13]} Kh5 {[%emt 0:00:43]} 79. Nd7 {[%emt 0:00:30]} Ra8 {[%emt 0:00:34]} 80. Ra6 {[%emt 0:00:37]} Nc7 {[%emt 0:00:17]} 81. Ra5+ {[%emt 0:00:12]} Kh6 {[%emt 0:00:28]} 82. Nb6 {[%emt 0:00:12]} Rd8 {[%emt 0:00:23]} 83. a8=Q {[%emt 0:00:33]} Nxa8 {[%emt 0:00:06]} 84. Rxa8 {[%emt 0:00:08]} Rd3 {[%emt 0:00:10]} 85. c4 {[%emt 0:00:21]} Rb3 {[%emt 0:00:05]} 86. c5 {[%emt 0:00:16]} Rb5 {[%emt 0:00:32]} 87. Rc8 {[%emt 0:00:10]} Kg6 {[%emt 0:00:15]} 88. Nc4 {[%emt 0:00:33]} Rb1+ {[%emt 0:00:12]} 89. Kh2 {[%emt 0:00:12]} Rc1 {[%emt 0:00:05]} 90. Nd6 {[%emt 0:00:16]} Kf6 {[%emt 0:00:15]} 91. Ne8+ {[%emt 0:00:33]} Kf7 {[%emt 0:00:13]} 92. c6 {[%emt 0:00:15]} g5 {[%emt 0:01:13]} 93. c7 {[%emt 0:00:07]} Rc6 {[%emt 0:00:26]} 94. Rd8 {[%emt 0:00:22]} Kg6 {[%emt 0:00:18]} 95. Rd6+ {[%emt 0:00:05]} Rxd6 {[%emt 0:00:06]} 96. Nxd6 {[%emt 0:00:04]} Kh5 {[%emt 0:00:08]} 97. c8=Q {[%emt 0:00:14]} Kg6 {[%emt 0:00:08]} 98. Qf5+ {[%emt 0:00:05]} Kh6 {[%emt 0:00:09]} 99. Qf6+ {[%emt 0:00:17]} Kh7 {[%emt 0:00:06]} 100. Nf5 {[%emt 0:00:11]} g4 {[%emt 0:00:06]} 101. Qg7# {[%emt 0:00:04]} 1-0